{"text_format":"1","workbook":"xlsx","n_sheets":5,"sheets":["入力","出張伺","校外学習伺兼出張伺","出張伺 （様式）","校外学習伺兼出張伺 （様式）"],"not_rendered":{"charts":0,"images":0,"macros":1,"external_links":0,"defined_names":2,"comments":0,"pivot_tables":0},"unopened":[],"bounds":{"document_bytes":16777216,"sheet_cells":100000,"rows_first":2000,"rows_last":500,"rows_between":2000,"halvings":0,"cell_chars":16384,"cell_head_chars":4096},"cells_cut":0,"cells_raw":0,"read":"whole","date_system":"1900"}

{"sheet":"入力","index":0,"n_rows":100,"n_cols":15,"rows_kept":100,"cut":false,"hidden":false,"merged":[[55,3,55,8],[0,1,0,5],[20,1,20,5],[37,1,37,5],[4,3,4,5],[28,3,28,7],[14,3,14,4],[34,3,34,8],[22,3,22,7],[29,3,29,4],[3,3,3,5],[11,5,11,6],[15,5,15,6],[25,4,25,7],[32,3,32,7],[50,3,50,8],[39,2,40,2],[44,2,45,2],[44,5,45,8],[44,4,45,4],[44,3,45,3],[51,2,52,2],[35,3,35,8],[56,2,57,2],[52,4,52,6],[57,4,57,6],[46,2,47,2],[46,3,47,3],[46,4,47,4],[46,5,47,8],[48,2,49,2],[48,3,49,3],[48,4,49,4],[48,5,49,5],[48,6,49,8],[53,2,54,2],[53,3,54,8]]}
[null,"出張伺・校外学習伺共通項目入力"]
[]
[null,1,"所属学校名"]
[null,2,"氏名"]
[null,3,"研修会等用務の内容"]
[null,null,null,"和暦","月","日"]
[null,4,"研修会・行事等　開催年月日"]
[null,null,null,"時","分"]
[null,5,"研修会・行事等　開会時間"]
[null,null,null,"時","分"]
[null,6,"研修会・行事等　閉会時間"]
[null,7,"出発地",null,"滞在地の場合\n住所入力→"]
[null,null,null,"時","分",null,"（番地まで入力）"]
[null,8,"出発時間"]
[null,9,"目的地"]
[null,10,"帰着地",null,"滞在地の場合\n住所入力→"]
[null,null,null,"時","分",null,"（番地まで入力）"]
[null,11,"帰着時間"]
[null,12,"使用する交通機関"]
[]
[null,"出張伺任意項目入力"]
[null,13,"複数交通用具利用",null,null,null,"使用する交通機関が2つ以上ある場合は、１２に引き続き入力してください。"]
[null,14,"複数交通用具利用時の行程"]
[null,15,"高速道路無料区間を利用する場合チェック入れる（往路）","□往路利用"]
[null,16,"高速道路無料区間を利用する場合チェック入れる（復路）","□復路利用"]
[null,17,"有料道路の利用有無","□有料道路の利用","有料道路利用の場合は区間と理由を記載してください。"]
[null,null,"区間（往路）","  □往路区間（",null,"）～　　　　　　（",null,"）"]
[null,null,"区間（復路）","  □復路区間（",null,"）～　　　　　　（",null,"）"]
[null,null,"有料道路利用の理由"]
[null,18,"有料駐車場の利用有無","□有料駐車場の利用",null,"有料駐車場利用の場合は単位と理由を記載してください。"]
[null,null,"・時間単位で利用"," □時間単位で利用",null,"時間"]
[null,null,"・日単位で利用"," □日単位で利用",null,"日"]
[null,null,"有料駐車場利用の理由"]
[null,19,"タクシーの利用有無","□タクシーの利用","区間　　　　（",null,"～",null,"）","タクシー利用の場合は区間と理由を記載してください。"]
[null,null,"タクシー利用の理由"]
[null,20,"備考"]
[]
[null,"校外学習伺必須項目入力"]
[]
[null,21,"複数引率者氏名\n（2名以上の場合、二人目以降を入力してください）"]
[]
[null,null,null,"年","組"]
[null,22,"実施学年"]
[null,23,"参加児童生徒数",null,"人"]
[null,24,"学習の目的","□別紙計画書の通り","別紙計画書がない場合はこちらに記入→"]
[]
[null,25,"日程・経路・その他","□別紙計画書の通り","別紙計画書がない場合はこちらに記入→"]
[]
[null,26,"利用交通手段",null,null,"その他の場合はこちらに記入→"]
[]
[null,27,"緊急連絡先"]
[null,28,"使用備品等"]
[null,null,null,"その他の場合はこちらに記入→"]
[null,29,"必要経費（支出）\n「交通費・見学料等」"]
[]
[null,30,"収入の内訳\n（1人当たりの集金額がわかるように）"]
[null,31,"必要経費の財源"]
[null,null,null,"その他の場合はこちらに記入→"]
[]
[null,null,"入力は以上です。"]
[]
[]
[]
[]
[]
[]
[]
[]
[]
[]
[]
[]
[]
[]
[]
[null,null,"プルダウンメニュー項目（変更しないでください）"]
[]
[]
[null,null,null,null,null,null,null,null,"□有料駐車場の利用",null," □時間単位で利用",null," □日単位で利用",null,"□有料道路の利用"]
[null,null,"十川小","学校","　 １　 公用車・借上車",null,"四万十町中央ＩＣ",null,"☑有料駐車場の利用",null," ☑時間単位で利用",null," ☑日単位で利用",null,"☑有料道路の利用"]
[null,null,"昭和小","自宅","　 ２　 貸切バス",null,"四万十町東ＩＣ"]
[null,null,"田野々小","滞在地","　 ３　 自家用車",null,"中土佐ＩＣ",null,"  □往路区間（",null,null,"救急箱"]
[null,null,"北ノ川小",null,"　 ４　 同　 乗",null,"須崎西ＩＣ",null,"  ☑往路区間（",null,null,"デジタルカメラ"]
[null,null,"川口小",null,"　 ５　 電車・バス",null,"須崎東ＩＣ",null,"  □復路区間（",null,null,"ビデオカメラ"]
[null,null,"窪川小",null,"　 ６　 高速バス",null,null,null,"  ☑復路区間（",null,null,"拡声器"]
[null,null,"七里小",null,"　 ７　 鉄 　道",null,"須崎東ＩＣ",null,"□タクシーの利用",null,null,"無線機"]
[null,null,"仁井田小",null,"　 ８　 船　 舶",null,"土佐ＩＣ",null,"☑タクシーの利用",null,null,"その他"]
[null,null,"興津小",null,"　 ９　 航空機",null,"伊野ＩＣ"]
[null,null,"影野小",null,"　 10　モノレール",null,"高知ＩＣ"]
[null,null,"東又小",null,"　 11　空港連絡バス",null,"南国ＩＣ",null,"□別紙計画書の通り",null,null,"公費"]
[null,null,"米奥小",null,"　 12　自転車",null,"大豊ＩＣ",null,"☑別紙計画書の通り",null,null,"集金"]
[null,null,"十川中",null,"　 13　徒 　歩",null,null,null,null,null,null,"PTA"]
[null,null,"大正中",null,"　 14　その他",null,"□往路利用",null,null,null,null,"その他"]
[null,null,"北ノ川中",null,null,null,"☑往路利用",null,"公用車・借上車"]
[null,null,"窪川中",null,null,null,"□復路利用",null,"貸切バス",null,null,"□食べる"]
[null,null,"興津中",null,null,null,"☑復路利用",null,"自家用車",null,null,"☑食べる"]
[null,null,null,null,null,null,null,null,"鉄道",null,null,"□食べない"]
[null,null,null,null,null,null,null,null,"自転車",null,null,"☑食べない"]
[null,null,null,null,null,null,null,null,"徒歩",null,null,"□係へ連絡済み"]
[null,null,null,null,null,null,null,null,"その他",null,null,"☑係へ連絡済み"]

{"sheet":"出張伺","index":1,"n_rows":71,"n_cols":36,"rows_kept":71,"cut":false,"hidden":false,"merged":[[55,1,55,24],[53,30,55,32],[52,30,52,32],[8,15,9,15],[6,16,7,16],[51,0,55,0],[52,26,55,26],[51,26,51,35],[53,27,55,29],[10,21,10,25],[6,10,7,10],[10,16,10,20],[53,33,55,35],[52,33,52,35],[45,33,45,35],[9,26,9,35],[33,0,33,35],[35,11,36,22],[45,0,48,0],[46,33,49,35],[31,16,31,20],[13,17,13,19],[15,21,18,25],[52,27,52,29],[27,16,27,20],[28,16,28,17],[35,0,35,10],[39,7,39,9],[42,0,42,1],[39,0,39,1],[40,0,40,1],[29,17,29,19],[27,0,30,0],[40,2,40,4],[39,5,39,6],[40,5,40,6],[37,0,37,2],[20,1,20,2],[20,4,20,5],[25,2,25,4],[25,17,25,19],[23,1,23,5],[24,1,24,2],[35,23,35,35],[32,0,32,35],[5,1,5,25],[8,17,9,25],[6,11,7,13],[8,11,9,13],[8,9,9,9],[6,15,7,15],[6,1,7,8],[6,17,7,25],[8,14,9,14],[8,16,9,16],[8,10,9,10],[24,4,24,5],[23,16,23,20],[24,16,24,17],[27,6,30,15],[24,19,24,20],[6,0,9,0],[45,27,45,29],[27,1,27,5],[28,1,28,2],[28,4,28,5],[16,16,16,17],[23,0,26,0],[15,0,18,0],[23,6,26,15],[28,19,28,20],[19,21,22,25],[19,16,19,20],[20,16,20,17],[23,21,26,25],[34,23,34,35],[45,26,49,26],[46,5,48,8],[47,9,48,12],[46,1,48,4],[49,1,49,4],[36,23,36,27],[36,28,36,34],[46,30,49,32],[46,27,49,29],[49,5,49,8],[49,9,49,12],[49,13,49,16],[37,23,37,27],[46,17,48,20],[49,17,49,20],[37,28,37,34],[38,23,38,35],[48,13,48,16],[47,13,47,16],[45,1,45,20],[45,21,49,24],[42,2,42,4],[42,5,42,6],[46,9,46,16],[3,0,3,25],[2,0,2,35],[17,17,17,19],[17,2,17,4],[4,1,4,18],[4,19,4,25],[45,30,45,32],[34,0,34,22],[15,6,18,15],[19,6,22,15],[4,26,4,35],[5,26,5,35],[6,26,6,35],[19,1,19,5],[12,1,12,2],[12,4,12,5],[11,6,14,15],[27,21,30,25],[29,2,29,4],[7,26,8,35],[11,1,11,5],[11,0,14,0],[31,0,31,15],[6,9,7,9],[3,26,3,30],[3,31,3,33],[3,34,3,35],[11,23,12,25],[13,21,14,22],[13,23,14,25],[0,0,0,35],[6,14,7,14],[19,0,22,0],[10,6,10,15],[15,1,15,5],[8,1,9,8],[16,1,16,2],[16,4,16,5],[11,16,11,20],[12,16,12,17],[12,19,12,20],[20,19,20,20],[16,19,16,20],[21,2,21,4],[21,17,21,19],[10,1,10,5],[13,2,13,4],[1,0,1,35],[51,1,54,24],[37,11,38,22],[39,11,40,22],[41,11,42,22],[15,16,15,20],[10,26,26,35],[28,29,28,35],[29,29,29,35],[28,26,28,28],[29,26,29,28],[11,21,12,22],[39,23,39,35],[40,23,40,35],[41,23,41,35],[42,23,42,35],[31,21,31,25],[42,7,42,9],[41,0,41,10],[36,0,36,3],[40,7,40,9],[36,6,36,10],[38,0,38,10],[37,5,37,10],[39,2,39,4]]}
[]
["様式第２号（第３条関係）"]
["出張・校外勤務・自家用車公務使用　伺"]
["※伺は用務の１０日前までに（案内文書添付のうえ）提出してください。\n※チケット・宿泊券等の手配を要する旅行については、１５日前までに提出してください。",null,null,null,null,null,null,null,null,null,null,null,null,null,null,null,null,null,null,null,null,null,null,null,null,null,"四万十町立",null,null,null,null,{"$f":"入力!D3","v":0},null,null,"学校"]
["氏　　名",{"$f":"入力!D4","v":0},null,null,null,null,null,null,null,null,null,null,null,null,null,null,null,null,null,"㊞",null,null,null,null,null,null,"所　属　長　承　認"]
["用務の\n内　 容",{"$f":"入力!D5","v":0},null,null,null,null,null,null,null,null,null,null,null,null,null,null,null,null,null,null,null,null,null,null,null,null,"    令和 　　 年　　 月 　　日"]
["期　　日",{"$f":"DATE(入力!D7+2018,入力!E7,入力!F7)","v":"2017-11-30"},null,null,null,null,null,null,null,"（",{"$f":"TEXT(B7,\"aaa\")","v":"木"},"曜日）",null,null,{"$f":"入力!D9","v":0},"時",{"$f":"入力!E9","v":0},"分から　　開会時間",null,null,null,null,null,null,null,null," 有料駐車場　　　　　　承認"]
[null,null,null,null,null,null,null,null,null,null,null,null,null,null,null,null,null,null,null,null,null,null,null,null,null,null," 有料道路　　　　 　　　承認"]
[null,{"$f":"B7","v":"2017-11-30"},null,null,null,null,null,null,null,"（",{"$f":"K7","v":"木"},"曜日）",null,null,{"$f":"入力!D11","v":0},"時",{"$f":"入力!E11","v":0},"分まで　　閉会時間"]
[null,null,null,null,null,null,null,null,null,null,null,null,null,null,null,null,null,null,null,null,null,null,null,null,null,null," タクシー　　　　 　　　　承認"]
["月／日","出 発 地\n\n出発時刻",null,null,null,null,"目的地（会場名）\n又 は 経 由 地",null,null,null,null,null,null,null,null,null,"帰 着 地\n\n帰着時刻",null,null,null,null,"交 通 機 関\n右から選択\n番 号 記 入",null,null,null,null,"\n　 １　 公用車・借上車\n　 ２　 貸切バス\n　 ３　 自家用車\n　 ４　 同　 乗\n　 ５　 電車・バス\n　 ６　 高速バス\n　 ７　 鉄 　道\n　 ８　 船　 舶\n　 ９　 航空機\n　 10　モノレール\n　 11　空港連絡バス\n　 12　自転車\n　 13　徒 　歩\n　 14　その他\n　 　　（　　　　 　　　　　　　 　）"]
[{"$f":"B7","v":"2017-11-30"},null,null,null,null,null,{"$f":"入力!D15","v":0},null,null,null,null,null,null,null,null,null,null,null,null,null,null,{"$f":"LEFT(入力!D19,4)","v":""},null,{"$f":"LEFT(入力!D22,4)","v":""}]
[null,"学校",null,"・","自宅",null,null,null,null,null,null,null,null,null,null,null,"学校",null,"・","自宅"]
[null,null,"滞在地",null,null,null,null,null,null,null,null,null,null,null,null,null,null,"滞在地",null,null,null,{"$f":"LEFT(入力!E22,4)","v":""},null,{"$f":"LEFT(入力!F22,4)","v":""}]
[null,null,{"$f":"入力!D14","v":0},"時",{"$f":"入力!E14","v":0},"分",null,null,null,null,null,null,null,null,null,null,null,{"$f":"入力!D18","v":0},"時",{"$f":"入力!E18","v":0},"分"]
["／"]
[null,"学校",null,"・","自宅",null,null,null,null,null,null,null,null,null,null,null,"学校",null,"・","自宅"]
[null,null,"滞在地",null,null,null,null,null,null,null,null,null,null,null,null,null,null,"滞在地"]
[null,null,null,"時",null,"分",null,null,null,null,null,null,null,null,null,null,null,null,"時",null,"分"]
["／"]
[null,"学校",null,"・","自宅",null,null,null,null,null,null,null,null,null,null,null,"学校",null,"・","自宅"]
[null,null,"滞在地",null,null,null,null,null,null,null,null,null,null,null,null,null,null,"滞在地"]
[null,null,null,"時",null,"分",null,null,null,null,null,null,null,null,null,null,null,null,"時",null,"分"]
["／"]
[null,"学校",null,"・","自宅",null,null,null,null,null,null,null,null,null,null,null,"学校",null,"・","自宅"]
[null,null,"滞在地",null,null,null,null,null,null,null,null,null,null,null,null,null,null,"滞在地"]
[null,null,null,"時",null,"分",null,null,null,null,null,null,null,null,null,null,null,null,"時",null,"分"]
["／"]
[null,"学校",null,"・","自宅",null,null,null,null,null,null,null,null,null,null,null,"学校",null,"・","自宅",null,null,null,null,null,null,{"$f":"IF(C14=\"\",\"\",\"出発滞在地住所：\")","v":"出発滞在地住所："},null,null,{"$f":"入力!F12&\"\"","v":""}]
[null,null,"滞在地",null,null,null,null,null,null,null,null,null,null,null,null,null,null,"滞在地",null,null,null,null,null,null,null,null,{"$f":"IF(R14=\"\",\"\",\"帰着滞在地住所：\")","v":"帰着滞在地住所："},null,null,{"$f":"入力!F16&\"\"","v":""}]
[null,null,null,"時",null,"分",null,null,null,null,null,null,null,null,null,null,null,null,"時",null,"分"]
["※高速道路無料区間利用の場合は、チェックを入れてください。",null,null,null,null,null,null,null,null,null,null,null,null,null,null,null,{"$f":"入力!D24","v":"□往路利用"},null,null,null,null,{"$f":"入力!D25","v":"□復路利用"}]
["※交通機関を複数利用の場合は、行程（経路・利用交通機関）を記入して下さい。"]
[{"$f":"入力!D23&\"\"","v":""}]
["　下記の項目について旅費支給の必要な場合は、□にチェックを入れ、\n　必要事項を記入してください。",null,null,null,null,null,null,null,null,null,null,null,null,null,null,null,null,null,null,null,null,null,null,"宿泊を伴う場合は以下の欄にも記入　\n（希望するホテルがあれば記入する）"]
[{"$f":"入力!D30","v":"□有料駐車場の利用"},null,null,null,null,null,null,null,null,null,null,"・理由",null,null,null,null,null,null,null,null,null,null,null,"　１．宿泊施設　ホテル"]
[{"$f":"入力!D31","v":" □時間単位で利用"},null,null,null,"（",{"$f":"入力!E31","v":0},"時間　）",null,null,null,null,null,null,null,null,null,null,null,null,null,null,null,null,"　　 （第一希望　",null,null,null,null,null,null,null,null,null,null,null,")"]
[{"$f":"入力!D32","v":" □日単位で利用"},null,null,"（",{"$f":"入力!E32","v":0},"　日　）",null,null,null,null,null,{"$f":"入力!D33","v":0},null,null,null,null,null,null,null,null,null,null,null,"　　 （第二希望　",null,null,null,null,null,null,null,null,null,null,null,")"]
[{"$f":"入力!D26","v":"□有料道路の利用"},null,null,null,null,null,null,null,null,null,null,null,null,null,null,null,null,null,null,null,null,null,null,"　２．自宅"]
[{"$f":"入力!D27","v":"  □往路区間（"},null,{"$f":"入力!E27","v":0},null,null,"）～（",null,{"$f":"入力!G27","v":0},null,null,"）",{"$f":"入力!D29","v":0},null,null,null,null,null,null,null,null,null,null,null,"　３．実家・親戚・知人宅"]
[{"$f":"入力!D28","v":"  □復路区間（"},null,{"$f":"入力!E28","v":0},null,null,"）～（",null,{"$f":"入力!G28","v":0},null,null,"）",null,null,null,null,null,null,null,null,null,null,null,null,"　４．車中"]
[{"$f":"入力!D34","v":"□タクシーの利用"},null,null,null,null,null,null,null,null,null,null,{"$f":"入力!D35","v":0},null,null,null,null,null,null,null,null,null,null,null,"　５．その他"]
["　　区間　　　　（",null,{"$f":"入力!F34","v":0},null,null,"）～（",null,{"$f":"入力!H34","v":0},null,null,"）"]
[]
[]
["区　　分","出　　　　　　　　　　張",null,null,null,null,null,null,null,null,null,null,null,null,null,null,null,null,null,null,null,"校外勤務",null,null,null,null,"チェック","日　誌",null,null,"出勤簿",null,null,"命令簿"]
[null,"配　 当",null,null,null,"配当外",null,null,null,"別　　　 途",null,null,null,null,null,null,null,"旅費無"]
[null,null,null,null,null,null,null,null,null,"管内旅費",null,null,null,"その他"]
[null,null,null,null,null,null,null,null,null,null,null,null,null,"（　　　　　　　）"]
["（命令番号）"]
[]
["備　　考",{"$f":"入力!D36","v":0},null,null,null,null,null,null,null,null,null,null,null,null,null,null,null,null,null,null,null,null,null,null,null,null,"県外自家用車使用時"]
[null,null,null,null,null,null,null,null,null,null,null,null,null,null,null,null,null,null,null,null,null,null,null,null,null,null,"決裁欄","教育長",null,null,"教育次長",null,null,"課長"]
[]
[]
[null,"　　　　　　　　　　　　　　　　　　　　　　　　　　　　　　口頭　・　文書復命確認"]
[]
[]
["南国IC"]
["高知IC"]
["伊野IC"]
["土佐IC"]
["土佐PA"]
["須崎東IC"]
[]
["須崎東IC"]
["須崎中央IC"]
["須崎西IC"]
["中土佐IC"]
["四万十町東ＩＣ"]
["四万十町中央ＩＣ"]

{"sheet":"校外学習伺兼出張伺","index":2,"n_rows":53,"n_cols":41,"rows_kept":53,"cut":false,"hidden":false,"merged":[[46,1,52,6],[51,7,52,9],[46,7,46,22],[13,7,16,35],[38,1,44,6],[13,1,16,6],[20,1,22,6],[23,1,23,6],[23,7,23,9],[18,8,18,12],[18,14,18,16],[18,18,18,21],[27,7,27,18],[47,10,49,12],[25,17,25,21],[24,1,26,6],[25,31,25,33],[17,1,19,6],[18,32,18,33],[51,16,52,18],[27,1,37,6],[51,19,52,22],[18,26,18,28],[44,27,44,40],[7,1,9,6],[11,1,12,6],[10,1,10,6],[7,7,7,17],[7,30,7,31],[9,7,9,17],[10,31,10,34],[10,35,10,38],[11,7,12,35],[11,36,12,40],[7,23,7,25],[9,23,9,25],[7,27,7,28],[7,21,7,22],[9,21,9,22],[9,30,9,31],[9,27,9,28],[10,7,10,8],[10,10,10,11],[10,14,10,17],[10,18,10,20],[10,27,10,28],[0,1,0,40],[5,7,6,31],[1,7,1,12],[2,7,2,12],[3,7,3,12],[1,13,1,18],[2,13,2,18],[3,13,3,18],[1,1,3,6],[5,1,6,6],[5,32,6,32],[1,20,1,26],[2,20,2,26],[3,20,3,26],[1,27,1,31],[2,27,2,31],[3,27,3,31],[4,7,4,31],[1,32,4,32],[3,33,4,34],[3,35,4,35],[3,37,4,37],[3,38,4,38],[3,36,4,36],[3,39,4,39],[3,40,4,40],[10,23,10,26],[25,8,25,10],[47,7,49,9],[48,13,49,15],[49,16,49,18],[47,13,47,18],[38,7,43,40],[25,12,25,15],[25,23,25,26],[25,28,25,30],[23,10,23,40],[25,35,25,39],[29,20,29,23],[31,20,31,23],[33,20,33,23],[52,28,52,29],[49,28,49,29],[51,10,52,12],[51,13,52,15],[46,27,47,29],[47,19,49,22],[51,28,51,29],[45,31,49,31],[13,36,16,40],[36,20,36,23],[28,25,36,40],[27,19,27,24],[46,23,52,26],[48,16,48,18],[18,23,18,25],[18,30,18,31],[18,35,18,39],[35,20,35,23],[28,7,37,18],[20,7,22,40],[27,25,27,40],[49,32,49,36]]}
[null,"校外学習（計画）・出張・校外勤務 伺"]
[null,"氏　　　　名",null,null,null,null,null,{"$f":"入力!D4","v":0},null,null,null,null,null,{"$f":"IF(入力!D40=\"\",\"\",入力!D40)","v":""},null,null,null,null,null,null,{"$f":"IF(入力!E40=\"\",\"\",入力!E40)","v":""},null,null,null,null,null,null,{"$f":"IF(入力!F40=\"\",\"\",入力!F40)","v":""},null,null,null,null,"所属長承認"]
[null,null,null,null,null,null,null,{"$f":"IF(入力!G40=\"\",\"\",入力!G40)","v":""},null,null,null,null,null,{"$f":"IF(入力!H40=\"\",\"\",入力!H40)","v":""},null,null,null,null,null,null,{"$f":"IF(入力!I40=\"\",\"\",入力!I40)","v":""},null,null,null,null,null,null,{"$f":"IF(入力!D41=\"\",\"\",入力!D41)","v":""}]
[null,null,null,null,null,null,null,{"$f":"IF(入力!E41=\"\",\"\",入力!E41)","v":""},null,null,null,null,null,{"$f":"IF(入力!F41=\"\",\"\",入力!F41)","v":""},null,null,null,null,null,null,{"$f":"IF(入力!G41=\"\",\"\",入力!G41)","v":""},null,null,null,null,null,null,{"$f":"IF(入力!H41=\"\",\"\",入力!H41)","v":""},null,null,null,null,null,"令和",null,null,"年",null,"月",null,"日"]
[null,null,null,null,null,null,null,"＊各自押印してください。"]
[null,"用務の内容",null,null,null,null,null,{"$f":"入力!D5","v":0},null,null,null,null,null,null,null,null,null,null,null,null,null,null,null,null,null,null,null,null,null,null,null,null,"教頭"]
[]
[null,"期　　　　日",null,null,null,null,null,{"$f":"出張伺!B7","v":"2017-11-30"},null,null,null,null,null,null,null,null,null,null,null,"（",{"$f":"出張伺!K7","v":"木"},"曜日）",null,{"$f":"入力!D14","v":0},null,null,"時",{"$f":"入力!E14","v":0},null,"分","から"]
[]
[null,null,null,null,null,null,null,{"$f":"H8","v":"2017-11-30"},null,null,null,null,null,null,null,null,null,null,null,"（",{"$f":"U8","v":"木"},"曜日）",null,{"$f":"入力!D18","v":0},null,null,"時",{"$f":"入力!E18","v":0},null,"分","まで"]
[null,"実施学年",null,null,null,null,null,{"$f":"IF(入力!D43=\"\",\"\",入力!D43)","v":""},null,"年",{"$f":"IF(入力!E43=\"\",\"\",入力!E43)","v":""},null,"組",null,"児童生徒数",null,null,null,{"$f":"IF(入力!D44=\"\",\"\",入力!D44)","v":""},null,null,"名",null,"引率者",null,null,null,{"$f":"COUNTIF(H2:AF4,\">=!\")","v":0},null,"名",null,"参加者合計",null,null,null,{"$f":"SUM(AB11,S11)","v":0},null,null,null,"名"]
[null,"学習の目的",null,null,null,null,null,{"$f":"入力!F45","v":0},null,null,null,null,null,null,null,null,null,null,null,null,null,null,null,null,null,null,null,null,null,null,null,null,null,null,null,null,{"$f":"入力!D45","v":"□別紙計画書の通り"}]
[]
[null,"日程・経路・その他",null,null,null,null,null,{"$f":"入力!F47","v":0},null,null,null,null,null,null,null,null,null,null,null,null,null,null,null,null,null,null,null,null,null,null,null,null,null,null,null,null,{"$f":"入力!D47","v":"□別紙計画書の通り"}]
[]
[]
[]
[null,"利用交通手段"]
[null,null,null,null,null,null,null,null,"公用車・借上車",null,null,null,null,null,"貸切バス",null,null,null,"自家用車",null,null,null,null,"鉄道",null,null,"自転車",null,null,null,"徒歩",null,"その他",null,"(",{"$f":"入力!G49","v":0},null,null,null,null,")"]
[]
[null,"行き先",null,null,null,null,null,{"$f":"入力!D15","v":0}]
[]
[]
[null,"緊急連絡先",null,null,null,null,null,"ＴＥＬ",null,null,{"$f":"入力!D51","v":0}]
[null,"使用備品等"]
[null,null,null,null,null,null,null,null,"救急箱",null,null,null,"デジタルカメラ",null,null,null,null,"ビデオカメラ",null,null,null,null,null,"拡声器",null,null,null,null,"無線機",null,null,"その他",null,null,"（",{"$f":"入力!E53","v":0},null,null,null,null,"）"]
[]
[null,"経費",null,null,null,null,null,"必要経費（支出）「交通費・見学料等」",null,null,null,null,null,null,null,null,null,null,null,"財源",null,null,null,null,null,"収入の内訳（1人当たりの集金額がわかるように）"]
[null,null,null,null,null,null,null,{"$f":"入力!D54","v":0},null,null,null,null,null,null,null,null,null,null,null,null,null,null,null,null,null,{"$f":"入力!D56","v":0}]
[null,null,null,null,null,null,null,null,null,null,null,null,null,null,null,null,null,null,null,null,"・公費"]
[]
[null,null,null,null,null,null,null,null,null,null,null,null,null,null,null,null,null,null,null,null,"・集金"]
[]
[null,null,null,null,null,null,null,null,null,null,null,null,null,null,null,null,null,null,null,null,"・ＰＴＡ"]
[]
[null,null,null,null,null,null,null,null,null,null,null,null,null,null,null,null,null,null,null,null,"・その他"]
[null,null,null,null,null,null,null,null,null,null,null,null,null,null,null,null,null,null,null,"（",{"$f":"入力!E58","v":0},null,null,null,"）"]
[]
[null,"校外学習報告書\n（評価・反省）"]
[]
[]
[]
[]
[]
[null,null,null,null,null,null,null,null,null,null,null,null,null,null,null,null,null,null,null,null,null,null,null,null,null,null,null,"欠席人数（　　　　　人）"]
[null,null,null,null,null,null,null,null,null,null,null,null,null,null,null,null,null,null,null,null,null,null,null,null,null,null,null,null,null,null,null,"所属長承認"]
[null,"区分\n\n\n（命令番号）",null,null,null,null,null,"出　　　　張",null,null,null,null,null,null,null,null,null,null,null,null,null,null,null,"校外勤務",null,null,null,"チェック"]
[null,null,null,null,null,null,null,"配当",null,null,"配当外",null,null,"別　途",null,null,null,null,null,"旅費無"]
[null,null,null,null,null,null,null,null,null,null,null,null,null,"管内旅費",null,null,"その他"]
[null,null,null,null,null,null,null,null,null,null,null,null,null,null,null,null,"（　　　　）",null,null,null,null,null,null,null,null,null,null,"□","日誌",null,null,null,"　 年　 月 　日"]
[]
[null,null,null,null,null,null,null,null,null,null,null,null,null,null,null,null,null,null,null,null,null,null,null,null,null,null,null,"□","出勤簿"]
[null,null,null,null,null,null,null,null,null,null,null,null,null,null,null,null,null,null,null,null,null,null,null,null,null,null,null,"□","命令簿"]

{"sheet":"出張伺 （様式）","index":3,"n_rows":71,"n_cols":36,"rows_kept":71,"cut":false,"hidden":false,"merged":[[51,0,55,0],[51,1,54,24],[51,26,51,35],[52,26,55,26],[52,27,52,29],[52,30,52,32],[52,33,52,35],[53,27,55,29],[46,30,49,32],[46,33,49,35],[47,9,48,12],[47,13,47,16],[53,30,55,32],[53,33,55,35],[55,1,55,24],[49,13,49,16],[49,17,49,20],[41,0,41,10],[41,11,42,22],[41,23,41,35],[42,0,42,1],[42,2,42,4],[42,5,42,6],[42,7,42,9],[42,23,42,35],[45,0,48,0],[45,1,45,20],[45,21,49,24],[45,26,49,26],[45,27,45,29],[45,30,45,32],[48,13,48,16],[49,1,49,4],[49,5,49,8],[49,9,49,12],[45,33,45,35],[46,1,48,4],[46,5,48,8],[46,9,46,16],[46,17,48,20],[46,27,49,29],[39,0,39,1],[39,2,39,4],[39,5,39,6],[39,7,39,9],[39,11,40,22],[39,23,39,35],[40,0,40,1],[40,2,40,4],[40,5,40,6],[40,7,40,9],[40,23,40,35],[37,0,37,2],[37,5,37,10],[37,11,38,22],[37,23,37,27],[37,28,37,34],[38,0,38,10],[38,23,38,35],[35,0,35,10],[35,11,36,22],[35,23,35,35],[36,0,36,3],[36,6,36,10],[36,23,36,27],[36,28,36,34],[31,0,31,15],[31,16,31,20],[31,21,31,25],[32,0,32,35],[33,0,33,35],[34,0,34,22],[34,23,34,35],[28,26,28,28],[28,29,28,35],[29,2,29,4],[29,17,29,19],[29,26,29,28],[29,29,29,35],[27,0,30,0],[27,1,27,5],[27,6,30,15],[27,16,27,20],[27,21,30,25],[28,1,28,2],[28,4,28,5],[28,16,28,17],[28,19,28,20],[23,21,26,25],[24,1,24,2],[24,4,24,5],[24,16,24,17],[24,19,24,20],[25,2,25,4],[25,17,25,19],[21,2,21,4],[21,17,21,19],[19,21,22,25],[23,6,26,15],[23,16,23,20],[17,17,17,19],[19,0,22,0],[19,1,19,5],[19,6,22,15],[19,16,19,20],[20,1,20,2],[20,4,20,5],[20,16,20,17],[20,19,20,20],[15,0,18,0],[15,1,15,5],[15,6,18,15],[15,16,15,20],[10,21,10,25],[10,26,26,35],[11,0,14,0],[11,1,11,5],[11,6,14,15],[11,16,11,20],[11,21,12,22],[15,21,18,25],[16,1,16,2],[16,4,16,5],[16,16,16,17],[16,19,16,20],[17,2,17,4],[11,23,12,25],[12,1,12,2],[12,4,12,5],[12,16,12,17],[12,19,12,20],[13,2,13,4],[13,17,13,19],[13,21,14,22],[13,23,14,25],[23,0,26,0],[23,1,23,5],[8,9,9,9],[8,10,9,10],[8,11,9,13],[8,14,9,14],[8,15,9,15],[6,14,7,14],[6,15,7,15],[6,16,7,16],[10,1,10,5],[10,6,10,15],[10,16,10,20],[6,0,9,0],[6,1,7,8],[6,9,7,9],[6,10,7,10],[6,11,7,13],[0,0,0,35],[1,0,1,35],[2,0,2,35],[3,0,3,25],[3,26,3,30],[3,31,3,33],[3,34,3,35],[6,17,7,25],[6,26,6,35],[7,26,8,35],[8,16,9,16],[8,17,9,25],[9,26,9,35],[4,1,4,18],[4,19,4,25],[4,26,4,35],[5,1,5,25],[5,26,5,35],[8,1,9,8]]}
[]
["様式第２号（第３条関係）"]
["出張・校外勤務・自家用車公務使用　伺"]
["※伺は用務の１０日前までに（案内文書添付のうえ）提出してください。\n※チケット・宿泊券等の手配を要する旅行については、１５日前までに提出してください。",null,null,null,null,null,null,null,null,null,null,null,null,null,null,null,null,null,null,null,null,null,null,null,null,null,"四万十町立",null,null,null,null,null,null,null,"学校"]
["氏　　名",null,null,null,null,null,null,null,null,null,null,null,null,null,null,null,null,null,null,"㊞",null,null,null,null,null,null,"所　属　長　承　認"]
["用務の\n内　 容",null,null,null,null,null,null,null,null,null,null,null,null,null,null,null,null,null,null,null,null,null,null,null,null,null,"            　　 年　　 月 　　日"]
["期　　日","      　　年　　月　　日",null,null,null,null,null,null,null,"（",null,"曜日）",null,null,null,"時",null,"分から　　開会時間",null,null,null,null,null,null,null,null," 有料駐車場　　　　　　承認"]
[null,null,null,null,null,null,null,null,null,null,null,null,null,null,null,null,null,null,null,null,null,null,null,null,null,null," 有料道路　　　　 　　　承認"]
[null,{"$f":"B7","v":"      　　年　　月　　日"},null,null,null,null,null,null,null,"（",null,"曜日）",null,null,null,"時",null,"分まで　　閉会時間"]
[null,null,null,null,null,null,null,null,null,null,null,null,null,null,null,null,null,null,null,null,null,null,null,null,null,null," タクシー　　　　 　　　　承認"]
["月／日","出 発 地\n\n出発時刻",null,null,null,null,"目的地（会場名）\n又 は 経 由 地",null,null,null,null,null,null,null,null,null,"帰 着 地\n\n帰着時刻",null,null,null,null,"交 通 機 関\n右から選択\n番 号 記 入",null,null,null,null,"\n　 １　 公用車・借上車\n　 ２　 貸切バス\n　 ３　 自家用車\n　 ４　 同　 乗\n　 ５　 電車・バス\n　 ６　 高速バス\n　 ７　 鉄 　道\n　 ８　 船　 舶\n　 ９　 航空機\n　 10　モノレール\n　 11　空港連絡バス\n　 12　自転車\n　 13　徒 　歩\n　 14　その他\n　 　　（　　　　 　　　　　　　 　）"]
["／"]
[null,"学校",null,"・","自宅",null,null,null,null,null,null,null,null,null,null,null,"学校",null,"・","自宅"]
[null,null,"滞在地",null,null,null,null,null,null,null,null,null,null,null,null,null,null,"滞在地",null,null,null,{"$f":"LEFT(入力!E22,4)","v":""},null,{"$f":"LEFT(入力!F22,4)","v":""}]
[null,null,null,"時",null,"分",null,null,null,null,null,null,null,null,null,null,null,null,"時",null,"分"]
["／"]
[null,"学校",null,"・","自宅",null,null,null,null,null,null,null,null,null,null,null,"学校",null,"・","自宅"]
[null,null,"滞在地",null,null,null,null,null,null,null,null,null,null,null,null,null,null,"滞在地"]
[null,null,null,"時",null,"分",null,null,null,null,null,null,null,null,null,null,null,null,"時",null,"分"]
["／"]
[null,"学校",null,"・","自宅",null,null,null,null,null,null,null,null,null,null,null,"学校",null,"・","自宅"]
[null,null,"滞在地",null,null,null,null,null,null,null,null,null,null,null,null,null,null,"滞在地"]
[null,null,null,"時",null,"分",null,null,null,null,null,null,null,null,null,null,null,null,"時",null,"分"]
["／"]
[null,"学校",null,"・","自宅",null,null,null,null,null,null,null,null,null,null,null,"学校",null,"・","自宅"]
[null,null,"滞在地",null,null,null,null,null,null,null,null,null,null,null,null,null,null,"滞在地"]
[null,null,null,"時",null,"分",null,null,null,null,null,null,null,null,null,null,null,null,"時",null,"分"]
["／"]
[null,"学校",null,"・","自宅",null,null,null,null,null,null,null,null,null,null,null,"学校",null,"・","自宅",null,null,null,null,null,null,"出発滞在地住所：",null,null,{"$f":"入力!F12&\"\"","v":""}]
[null,null,"滞在地",null,null,null,null,null,null,null,null,null,null,null,null,null,null,"滞在地",null,null,null,null,null,null,null,null,"帰着滞在地住所："]
[null,null,null,"時",null,"分",null,null,null,null,null,null,null,null,null,null,null,null,"時",null,"分"]
["※高速道路無料区間利用の場合は、チェックを入れてください。",null,null,null,null,null,null,null,null,null,null,null,null,null,null,null,{"$f":"入力!D24","v":"□往路利用"},null,null,null,null,{"$f":"入力!D25","v":"□復路利用"}]
["※交通機関を複数利用の場合は、行程（経路・利用交通機関）を記入して下さい。"]
[]
["　下記の項目について旅費支給の必要な場合は、□にチェックを入れ、\n　必要事項を記入してください。",null,null,null,null,null,null,null,null,null,null,null,null,null,null,null,null,null,null,null,null,null,null,"宿泊を伴う場合は以下の欄にも記入　\n（希望するホテルがあれば記入する）"]
[{"$f":"入力!D30","v":"□有料駐車場の利用"},null,null,null,null,null,null,null,null,null,null,"・理由",null,null,null,null,null,null,null,null,null,null,null,"　１．宿泊施設　ホテル"]
[{"$f":"入力!D31","v":" □時間単位で利用"},null,null,null,"（",{"$f":"入力!E31","v":0},"時間　）",null,null,null,null,null,null,null,null,null,null,null,null,null,null,null,null,"　　 （第一希望　",null,null,null,null,null,null,null,null,null,null,null,")"]
[{"$f":"入力!D32","v":" □日単位で利用"},null,null,"（",{"$f":"入力!E32","v":0},"　日　）",null,null,null,null,null,{"$f":"入力!D33","v":0},null,null,null,null,null,null,null,null,null,null,null,"　　 （第二希望　",null,null,null,null,null,null,null,null,null,null,null,")"]
[{"$f":"入力!D26","v":"□有料道路の利用"},null,null,null,null,null,null,null,null,null,null,null,null,null,null,null,null,null,null,null,null,null,null,"　２．自宅"]
[{"$f":"入力!D27","v":"  □往路区間（"},null,{"$f":"入力!E27","v":0},null,null,"）～（",null,{"$f":"入力!G27","v":0},null,null,"）",{"$f":"入力!D29","v":0},null,null,null,null,null,null,null,null,null,null,null,"　３．実家・親戚・知人宅"]
[{"$f":"入力!D28","v":"  □復路区間（"},null,{"$f":"入力!E28","v":0},null,null,"）～（",null,{"$f":"入力!G28","v":0},null,null,"）",null,null,null,null,null,null,null,null,null,null,null,null,"　４．車中"]
[{"$f":"入力!D34","v":"□タクシーの利用"},null,null,null,null,null,null,null,null,null,null,{"$f":"入力!D35","v":0},null,null,null,null,null,null,null,null,null,null,null,"　５．その他"]
["　　区間　　　　（",null,{"$f":"入力!F34","v":0},null,null,"）～（",null,{"$f":"入力!H34","v":0},null,null,"）"]
[]
[]
["区　　分","出　　　　　　　　　　張",null,null,null,null,null,null,null,null,null,null,null,null,null,null,null,null,null,null,null,"校外勤務",null,null,null,null,"チェック","日　誌",null,null,"出勤簿",null,null,"命令簿"]
[null,"配　 当",null,null,null,"配当外",null,null,null,"別　　　 途",null,null,null,null,null,null,null,"旅費無"]
[null,null,null,null,null,null,null,null,null,"管内旅費",null,null,null,"その他"]
[null,null,null,null,null,null,null,null,null,null,null,null,null,"（　　　　　　　）"]
["（命令番号）"]
[]
["備　　考",{"$f":"入力!D36","v":0},null,null,null,null,null,null,null,null,null,null,null,null,null,null,null,null,null,null,null,null,null,null,null,null,"県外自家用車使用時"]
[null,null,null,null,null,null,null,null,null,null,null,null,null,null,null,null,null,null,null,null,null,null,null,null,null,null,"決裁欄","教育長",null,null,"教育次長",null,null,"課長"]
[]
[]
[null,"　　　　　　　　　　　　　　　　　　　　　　　　　　　　　　口頭　・　文書復命確認"]
[]
[]
["南国IC"]
["高知IC"]
["伊野IC"]
["土佐IC"]
["土佐PA"]
["須崎東IC"]
[]
["須崎東IC"]
["須崎中央IC"]
["須崎西IC"]
["中土佐IC"]
["四万十町東ＩＣ"]
["四万十町中央ＩＣ"]

{"sheet":"校外学習伺兼出張伺 （様式）","index":4,"n_rows":53,"n_cols":41,"rows_kept":53,"cut":false,"hidden":false,"merged":[[52,28,52,29],[49,28,49,29],[38,1,44,6],[45,31,49,31],[46,1,52,6],[46,7,46,22],[46,23,52,26],[46,27,47,29],[51,7,52,9],[51,10,52,12],[51,13,52,15],[51,16,52,18],[51,19,52,22],[51,28,51,29],[47,7,49,9],[47,10,49,12],[47,13,47,18],[47,19,49,22],[48,13,49,15],[48,16,48,18],[49,16,49,18],[44,27,44,40],[38,7,43,40],[49,32,49,36],[25,31,25,33],[25,35,25,39],[27,1,37,6],[27,7,27,18],[27,19,27,24],[27,25,27,40],[28,7,37,18],[28,25,36,40],[29,20,29,23],[31,20,31,23],[24,1,26,6],[25,8,25,10],[25,12,25,15],[25,17,25,21],[25,23,25,26],[25,28,25,30],[33,20,33,23],[35,20,35,23],[36,20,36,23],[18,32,18,33],[18,35,18,39],[20,1,22,6],[20,7,22,40],[23,1,23,6],[23,7,23,9],[23,10,23,40],[13,1,16,6],[13,7,16,35],[13,36,16,40],[17,1,19,6],[18,8,18,12],[18,14,18,16],[18,18,18,21],[18,23,18,25],[18,26,18,28],[18,30,18,31],[10,27,10,28],[10,31,10,34],[10,35,10,38],[11,1,12,6],[11,7,12,35],[11,36,12,40],[9,21,9,22],[9,23,9,25],[9,27,9,28],[9,30,9,31],[10,1,10,6],[10,7,10,8],[10,10,10,11],[10,14,10,17],[10,18,10,20],[10,23,10,26],[5,1,6,6],[5,7,6,31],[5,32,6,32],[7,1,9,6],[7,7,7,17],[7,21,7,22],[7,23,7,25],[7,27,7,28],[7,30,7,31],[9,7,9,17],[0,1,0,40],[1,1,3,6],[1,7,1,12],[1,13,1,18],[1,20,1,26],[1,27,1,31],[1,32,4,32],[2,7,2,12],[2,13,2,18],[2,20,2,26],[3,35,4,35],[3,36,4,36],[3,37,4,37],[3,38,4,38],[3,39,4,39],[3,40,4,40],[2,27,2,31],[3,7,3,12],[3,13,3,18],[3,20,3,26],[3,27,3,31],[3,33,4,34],[4,7,4,31]]}
[null,"校外学習（計画）・出張・校外勤務 伺"]
[null,"氏　　　　名",null,null,null,null,null,null,null,null,null,null,null,null,null,null,null,null,null,null,{"$f":"IF(入力!E40=\"\",\"\",入力!E40)","v":""},null,null,null,null,null,null,{"$f":"IF(入力!F40=\"\",\"\",入力!F40)","v":""},null,null,null,null,"所属長承認"]
[null,null,null,null,null,null,null,{"$f":"IF(入力!G40=\"\",\"\",入力!G40)","v":""},null,null,null,null,null,{"$f":"IF(入力!H40=\"\",\"\",入力!H40)","v":""},null,null,null,null,null,null,{"$f":"IF(入力!I40=\"\",\"\",入力!I40)","v":""},null,null,null,null,null,null,{"$f":"IF(入力!D41=\"\",\"\",入力!D41)","v":""}]
[null,null,null,null,null,null,null,{"$f":"IF(入力!E41=\"\",\"\",入力!E41)","v":""},null,null,null,null,null,{"$f":"IF(入力!F41=\"\",\"\",入力!F41)","v":""},null,null,null,null,null,null,{"$f":"IF(入力!G41=\"\",\"\",入力!G41)","v":""},null,null,null,null,null,null,{"$f":"IF(入力!H41=\"\",\"\",入力!H41)","v":""},null,null,null,null,null,null,null,null,"年",null,"月",null,"日"]
[null,null,null,null,null,null,null,"＊各自押印してください。"]
[null,"用務の内容",null,null,null,null,null,null,null,null,null,null,null,null,null,null,null,null,null,null,null,null,null,null,null,null,null,null,null,null,null,null,"教頭"]
[]
[null,"期　　　　日",null,null,null,null,null,"       　年　月　日",null,null,null,null,null,null,null,null,null,null,null,"（",null,"曜日）",null,null,null,null,"時",null,null,"分","から"]
[]
[null,null,null,null,null,null,null,{"$f":"H8","v":"       　年　月　日"},null,null,null,null,null,null,null,null,null,null,null,"（",null,"曜日）",null,null,null,null,"時",null,null,"分","まで"]
[null,"実施学年",null,null,null,null,null,null,null,"年",null,null,"組",null,"児童生徒数",null,null,null,null,null,null,"名",null,"引率者",null,null,null,{"$f":"COUNTIF(H2:AF4,\">=!\")","v":0},null,"名",null,"参加者合計",null,null,null,{"$f":"SUM(AB11,S11)","v":0},null,null,null,"名"]
[null,"学習の目的",null,null,null,null,null,{"$f":"入力!F45","v":0},null,null,null,null,null,null,null,null,null,null,null,null,null,null,null,null,null,null,null,null,null,null,null,null,null,null,null,null,{"$f":"入力!D45","v":"□別紙計画書の通り"}]
[]
[null,"日程・経路・その他",null,null,null,null,null,{"$f":"入力!F47","v":0},null,null,null,null,null,null,null,null,null,null,null,null,null,null,null,null,null,null,null,null,null,null,null,null,null,null,null,null,{"$f":"入力!D47","v":"□別紙計画書の通り"}]
[]
[]
[]
[null,"利用交通手段"]
[null,null,null,null,null,null,null,null,"公用車・借上車",null,null,null,null,null,"貸切バス",null,null,null,"自家用車",null,null,null,null,"鉄道",null,null,"自転車",null,null,null,"徒歩",null,"その他",null,"(",{"$f":"入力!G49","v":0},null,null,null,null,")"]
[]
[null,"行き先"]
[]
[]
[null,"緊急連絡先",null,null,null,null,null,"ＴＥＬ",null,null,{"$f":"入力!D51","v":0}]
[null,"使用備品等"]
[null,null,null,null,null,null,null,null,"救急箱",null,null,null,"デジタルカメラ",null,null,null,null,"ビデオカメラ",null,null,null,null,null,"拡声器",null,null,null,null,"無線機",null,null,"その他",null,null,"（",{"$f":"入力!E53","v":0},null,null,null,null,"）"]
[]
[null,"経費",null,null,null,null,null,"必要経費（支出）「交通費・見学料等」",null,null,null,null,null,null,null,null,null,null,null,"財源",null,null,null,null,null,"収入の内訳（1人当たりの集金額がわかるように）"]
[null,null,null,null,null,null,null,{"$f":"入力!D54","v":0},null,null,null,null,null,null,null,null,null,null,null,null,null,null,null,null,null,{"$f":"入力!D56","v":0}]
[null,null,null,null,null,null,null,null,null,null,null,null,null,null,null,null,null,null,null,null,"・公費"]
[]
[null,null,null,null,null,null,null,null,null,null,null,null,null,null,null,null,null,null,null,null,"・集金"]
[]
[null,null,null,null,null,null,null,null,null,null,null,null,null,null,null,null,null,null,null,null,"・ＰＴＡ"]
[]
[null,null,null,null,null,null,null,null,null,null,null,null,null,null,null,null,null,null,null,null,"・その他"]
[null,null,null,null,null,null,null,null,null,null,null,null,null,null,null,null,null,null,null,"（",{"$f":"入力!E58","v":0},null,null,null,"）"]
[]
[null,"校外学習報告書\n（評価・反省）"]
[]
[]
[]
[]
[]
[null,null,null,null,null,null,null,null,null,null,null,null,null,null,null,null,null,null,null,null,null,null,null,null,null,null,null,"欠席人数（　　　　　人）"]
[null,null,null,null,null,null,null,null,null,null,null,null,null,null,null,null,null,null,null,null,null,null,null,null,null,null,null,null,null,null,null,"所属長承認"]
[null,"区分\n\n\n（命令番号）",null,null,null,null,null,"出　　　　張",null,null,null,null,null,null,null,null,null,null,null,null,null,null,null,"校外勤務",null,null,null,"チェック"]
[null,null,null,null,null,null,null,"配当",null,null,"配当外",null,null,"別　途",null,null,null,null,null,"旅費無"]
[null,null,null,null,null,null,null,null,null,null,null,null,null,"管内旅費",null,null,"その他"]
[null,null,null,null,null,null,null,null,null,null,null,null,null,null,null,null,"（　　　　）",null,null,null,null,null,null,null,null,null,null,"□","日誌",null,null,null,"　 年　 月 　日"]
[]
[null,null,null,null,null,null,null,null,null,null,null,null,null,null,null,null,null,null,null,null,null,null,null,null,null,null,null,"□","出勤簿"]
[null,null,null,null,null,null,null,null,null,null,null,null,null,null,null,null,null,null,null,null,null,null,null,null,null,null,null,"□","命令簿"]